bitfinex/quotes_BTCUSD_20250211
["timestamp","ask_amount","ask_price","bid_price","bid_amount"]
[1739253113185,0.0001066,98327.0,98326.0,0.69745665]
[1739253115140,0.0001066,98327.0,98326.0,0.69845665]
[1739253115344,0.0001066,98327.0,98326.0,0.69745665]
[1739253115744,0.0001066,98327.0,98326.0,0.69845665]
[1739253115943,0.0001066,98327.0,98326.0,0.69745665]
[1739253116395,0.0001066,98327.0,98326.0,0.69845665]
[1739253116582,0.0001066,98327.0,98326.0,0.7126822]
[1739253121251,0.0001066,98327.0,98326.0,0.7116822]
[1739253121674,0.0011066,98327.0,98326.0,0.7096822]
[1739253122012,0.0021066,98327.0,98326.0,0.7226822]
[1739253122395,0.0011066,98327.0,98326.0,0.7096822]
[1739253122798,0.0021066,98327.0,98326.0,0.7246822]
[1739253123847,0.0021066,98327.0,98326.0,0.74501395]
[1739253125028,0.00040249,98327.0,98326.0,0.74501395]
[1739253130536,0.00040249,98327.0,98326.0,1.27911395]
[1739253132004,0.00050909,98327.0,98326.0,1.27911395]
[1739253139691,0.00050909,98327.0,98326.0,1.42911395]
[1739253141985,0.00050909,98327.0,98326.0,1.43655395]
[1739253144466,0.0001066,98330.0,98329.0,0.152549]
[1739253144667,0.0001066,98330.0,98329.0,0.53296916]
[1739253144909,0.0001066,98330.0,98329.0,0.53195265]
[1739253145527,0.0001066,98330.0,98329.0,1.41913432]
[1739253145725,0.0011066,98330.0,98329.0,1.43213432]
[1739253146074,0.0021066,98330.0,98329.0,1.43513432]
[1739253146291,0.0011066,98330.0,98329.0,1.42213432]
[1739253146467,6e-07,98330.0,98329.0,1.47257432]
[1739253146668,0.0001066,98340.0,98339.0,0.439433]
[1739253146855,0.0001066,98340.0,98339.0,1.42911832]
[1739253147050,0.0001066,98340.0,98339.0,1.38763665]
[1739253148504,0.0001066,98340.0,98339.0,1.40263665]
[1739253148886,0.0001066,98340.0,98339.0,1.40963665]
[1739253149321,0.0001066,98340.0,98339.0,1.41965472]
[1739253156754,0.0001066,98340.0,98339.0,1.45114147]
[1739253156950,0.0001066,98340.0,98339.0,2.95114147]
[1739253157499,0.0001066,98340.0,98339.0,2.91965472]
[1739253157844,0.0001066,98340.0,98339.0,2.95114063]
[1739253167790,0.0001066,98340.0,98339.0,2.97414063]
[1739253174470,0.0001066,98340.0,98339.0,2.98158063]
[1739253178501,0.0001066,98340.0,98339.0,2.96658063]
[1739253178883,0.0011066,98340.0,98339.0,2.97458063]
[1739253179303,0.0011066,98340.0,98339.0,2.98158063]
[1739253180178,0.0001066,98340.0,98339.0,2.96658063]
[1739253180582,0.0001066,98340.0,98339.0,2.98158063]
[1739253181594,0.0001066,98340.0,98339.0,2.95958063]
[1739253181892,0.0001066,98340.0,98339.0,2.97458063]
[1739253182124,0.0001066,98340.0,98339.0,2.98158063]
[1739253186218,6e-07,98340.0,98339.0,3.00158063]
[1739253186629,6e-07,98340.0,98339.0,2.99414063]
[1739253186799,6e-07,98340.0,98339.0,3.00158063]
[1739253187846,6e-07,98340.0,98339.0,2.98658063]
[1739253188049,6e-07,98340.0,98339.0,2.97958063]
[1739253188259,6e-07,98340.0,98339.0,2.99458063]
[1739253188455,6e-07,98340.0,98339.0,3.00158063]
[1739253189544,6e-07,98340.0,98339.0,1.50158063]
[1739253190129,6e-07,98340.0,98339.0,3.00158063]
[1739253190730,6e-07,98340.0,98339.0,1.50158063]
[1739253194788,6e-07,98340.0,98339.0,3.00158063]
[1739253197857,6e-07,98340.0,98339.0,1.50158063]
[1739253198197,6e-07,98340.0,98339.0,3.00158063]
[1739253199921,0.0001067,98357.0,98345.0,0.01]
[1739253200097,0.0001067,98357.0,98356.0,0.27801065]
[1739253201313,0.00015613,98357.0,98356.0,0.27801065]
[1739253201723,0.00015613,98357.0,98356.0,0.28201065]
[1739253202880,0.00015613,98357.0,98356.0,0.27001065]
[1739253204878,0.00015613,98357.0,98356.0,1.12571065]
[1739253205300,0.0455,98377.0,98376.0,0.152476]
[1739253205487,0.0455,98377.0,98376.0,0.57657965]
[1739253205488,0.04554942,98377.0,98376.0,0.57657965]
[1739253206436,0.04654942,98377.0,98376.0,0.57657965]
[1739253207031,0.04554942,98377.0,98376.0,0.57657965]
[1739253207241,0.04554942,98377.0,98376.0,0.58257965]
[1739253207657,0.04554942,98377.0,98376.0,0.58557965]
[1739253208522,0.04554942,98377.0,98376.0,0.61605318]
[1739253214071,0.04565602,98377.0,98376.0,0.61605318]
[1739253218431,0.00015602,98377.0,98376.0,0.61605318]
[1739253218665,0.00015602,98377.0,98376.0,0.76605318]
[1739253222782,0.00015602,98377.0,98376.0,1.30015318]
[1739253225594,0.00015602,98377.0,98376.0,1.32315318]
[1739253225797,0.00015602,98377.0,98376.0,1.45545318]
[1739253226367,0.00015602,98377.0,98376.0,1.44645318]
[1739253226840,0.00015602,98377.0,98376.0,1.46445318]
[1739253227917,0.00015602,98377.0,98376.0,1.41505318]
[1739253228125,0.00015602,98377.0,98376.0,1.30915318]
[1739253231048,0.00015602,98377.0,98376.0,1.38925318]
[1739253232501,0.00015602,98377.0,98376.0,1.30915318]
[1739253239146,0.00015602,98377.0,98376.0,0.98755318]
[1739253239280,0.00015602,98377.0,98376.0,0.97752541]
[1739253249418,0.00015602,98377.0,98376.0,1.29912541]
[1739253283463,0.00015602,98377.0,98376.0,1.37662541]
[1739253283873,0.00015602,98377.0,98376.0,1.38615693]
[1739253284269,0.0001066,98393.0,98392.0,0.152451]
[1739253284470,0.00015077,98393.0,98392.0,0.25495465]
[1739253285137,0.00015077,98393.0,98392.0,0.57655465]
[1739253285629,0.00015077,98393.0,98392.0,0.58055465]
[1739253285805,0.00015077,98393.0,98392.0,0.59008617]
[1739253287840,0.00015077,98393.0,98392.0,0.61000434]
[1739253291874,0.00163077,98393.0,98392.0,0.61000434]
[1739253292364,0.00163077,98393.0,98392.0,0.60852434]
[1739253296059,0.00163077,98393.0,98392.0,0.58860617]
[1739253304099,0.00163077,98393.0,98392.0,0.73860617]
[1739253304296,0.00163077,98393.0,98392.0,0.81820617]
[1739253305114,0.00163077,98393.0,98392.0,0.81520617]
[1739253305330,0.00163077,98393.0,98392.0,0.82720617]
[1739253305471,0.00163077,98393.0,98392.0,0.82620617]
[1739253305709,0.00163077,98393.0,98392.0,0.83043003]
[1739253306500,0.00163077,98393.0,98392.0,0.67643003]
[1739253306697,0.00163077,98393.0,98392.0,0.82848278]
[1739253307105,0.00163077,98393.0,98392.0,1.46332278]
[1739253307536,0.0001066,98403.0,98402.0,0.302435]
[1739253307716,0.0001066,98403.0,98402.0,0.72653865]
[1739253308651,0.0001066,98403.0,98402.0,0.73607017]
[1739253309218,0.0001066,98403.0,98402.0,0.74107017]
[1739253309413,0.0001066,98403.0,98402.0,0.75307017]
[1739253310009,0.0001066,98403.0,98402.0,0.75907017]
[1739253310208,0.0001066,98403.0,98402.0,0.74807017]
[1739253311157,0.0001066,98403.0,98402.0,0.73607017]
[1739253311539,0.0001066,98403.0,98402.0,0.75707017]
[1739253312153,0.0001066,98403.0,98402.0,0.73607017]
[1739253312286,0.00022387,98419.0,98414.0,0.152417]
[1739253312495,0.00018296,98415.0,98414.0,0.25492065]
[1739253314095,0.00018296,98415.0,98414.0,0.02474754]
[1739253314300,0.04908296,98415.0,98414.0,0.02474754]
[1739253314940,0.04908296,98415.0,98414.0,0.02574754]
[1739253315150,0.04908296,98415.0,98414.0,0.03574754]
[1739253315563,0.04908296,98415.0,98414.0,0.03874754]
[1739253315780,0.04908296,98415.0,98414.0,0.01253152]
[1739253315988,0.04908296,98415.0,98414.0,0.02153152]
[1739253316198,0.04908296,98415.0,98414.0,0.01853152]
[1739253317411,0.04908296,98415.0,98414.0,0.00953152]
[1739253318487,0.04908296,98415.0,98414.0,0.01253152]
[1739253318873,0.04908296,98415.0,98414.0,0.00953152]
[1739253319020,0.04908296,98415.0,98414.0,0.01253152]
[1739253319871,0.00018296,98415.0,98414.0,0.26745217]
[1739253320488,0.00018296,98415.0,98414.0,0.26445217]
[1739253320940,0.00018296,98415.0,98414.0,0.26645217]
[1739253321300,0.00018296,98415.0,98414.0,0.26445217]
[1739253321753,0.00018296,98415.0,98414.0,0.28166819]
[1739253321954,0.00018296,98415.0,98414.0,0.28866819]
[1739253322513,0.00018296,98415.0,98414.0,0.28166819]
[1739253322776,0.00018296,98415.0,98414.0,0.27966819]
[1739253323018,0.00018296,98415.0,98414.0,0.28266819]
[1739253323761,0.00018296,98415.0,98414.0,0.29027607]
[1739253324983,0.00018296,98415.0,98414.0,0.29927607]
[1739253329591,0.00018296,98415.0,98414.0,0.62087607]
[1739253334951,0.00018296,98415.0,98414.0,0.61326819]
[1739253338091,0.00018296,98415.0,98414.0,0.62088414]
[1739253338496,0.00018296,98415.0,98414.0,0.69758414]
[1739253341307,0.00018296,98415.0,98414.0,0.71814518]
[1739253347349,0.00022387,98419.0,98418.0,0.152411]
[1739253347550,0.00022387,98419.0,98418.0,1.19263057]
[1739253347751,0.0001066,98429.0,98418.0,0.62080365]
[1739253347967,0.0001066,98429.0,98427.0,0.33590065]
[1739253349304,0.0001066,98439.0,98438.0,0.28008]
[1739253349529,0.0001066,98439.0,98438.0,1.23828365]
[1739253349970,0.07868624,98528.0,98500.0,0.155]
[1739253350173,0.0001066,98527.0,98526.0,0.152244]
[1739253350382,0.0511,98542.0,98532.0,0.01]
[1739253350383,0.02573124,98533.0,98532.0,0.01]
[1739253350606,0.02573124,98533.0,98532.0,0.162234]
[1739253350806,0.02617382,98533.0,98532.0,0.69734876]
[1739253351011,0.02617382,98533.0,98532.0,0.696334]
[1739253351413,0.02617382,98533.0,98532.0,0.79883765]
[1739253351624,0.02617382,98533.0,98532.0,0.8186805]
[1739253352034,0.20291,98566.0,98532.0,0.8186805]
[1739253352035,0.01985709,98591.0,98574.0,0.01]
[1739253352236,0.0783,98615.0,98575.0,0.01]
[1739253352428,0.00568762,98590.0,98577.0,0.01]
[1739253352650,0.152152,98585.0,98584.0,0.01]
[1739253352857,0.152154,98584.0,98583.0,0.01]
[1739253353059,0.00568754,98585.0,98583.0,0.01]
[1739253353253,0.00568754,98585.0,98584.0,0.01]
[1739253353254,0.152153,98585.0,98584.0,0.01]
[1739253353673,0.202866,98587.0,98577.0,0.01]
[1739253354087,0.202866,98587.0,98541.0,0.5341]
[1739253354088,0.152163,98578.0,98576.0,0.01]
[1739253354306,0.175173,98572.0,98571.0,0.01]
[1739253354522,0.175173,98572.0,98557.0,0.01]
[1739253354523,0.175194,98558.0,98557.0,0.01]
[1739253354736,0.15,98573.0,98562.0,0.01]
[1739253354947,0.152186,98564.0,98562.0,0.01]
[1739253355152,0.023,98563.0,98562.0,0.01]
[1739253355361,0.0211002,98563.0,98562.0,0.01]
[1739253355567,0.15,98555.0,98554.0,0.01]
[1739253355775,0.15,98561.0,98537.0,0.01]
[1739253355981,0.15,98561.0,98532.0,0.10250365]
[1739253355982,0.302194,98558.0,98557.0,0.001]
[1739253357061,0.307194,98558.0,98557.0,0.002]
[1739253357267,0.330194,98558.0,98557.0,0.001]
[1739253357501,0.175236,98531.0,98530.0,0.01]
[1739253357711,0.175236,98531.0,98530.0,0.02]
[1739253357908,0.023,98531.0,98530.0,0.02]
[1739253358144,0.152201,98554.0,98550.0,0.01]
[1739253358351,0.152201,98554.0,98530.0,0.10250365]
[1739253358352,0.152201,98554.0,98552.0,0.01]
[1739253358582,0.15,98553.0,98552.0,0.01]
[1739253359338,0.173,98553.0,98552.0,0.01]
[1739253360541,0.173,98551.0,98550.0,0.001]
[1739253360755,0.152236,98531.0,98530.0,0.012]
[1739253360933,0.325236,98531.0,98530.0,0.002]
[1739253361182,0.30224,98528.0,98527.0,0.01]
[1739253361390,0.15225,98522.0,98519.0,0.01]
[1739253361596,0.173,98522.0,98521.0,0.01]
[1739253361807,0.17952332,98522.0,98521.0,0.01]
[1739253362846,0.17965594,98522.0,98521.0,0.01]
[1739253363229,0.17865594,98522.0,98521.0,0.01]
[1739253363440,0.17965594,98522.0,98521.0,0.01]
[1739253363897,0.18265594,98522.0,98521.0,0.01]
[1739253364109,0.18165594,98522.0,98521.0,0.01]
[1739253364314,0.18265594,98522.0,98521.0,0.01]
[1739253364725,0.17865594,98522.0,98521.0,0.01]
[1739253364853,0.18065594,98522.0,98521.0,0.01]
[1739253365056,0.18065594,98522.0,98521.0,0.012]
[1739253365460,0.00965594,98522.0,98521.0,0.11450365]
[1739253365711,0.31190594,98522.0,98521.0,0.11450365]
[1739253366953,0.31190594,98522.0,98521.0,0.11250365]
[1739253367510,0.16065594,98522.0,98521.0,0.11650365]
[1739253368538,0.31290594,98522.0,98521.0,0.11650365]
[1739253368803,0.15965594,98522.0,98521.0,0.11250365]
[1739253369172,0.31190594,98522.0,98521.0,0.11250365]
[1739253369899,0.30890594,98522.0,98521.0,0.11250365]
[1739253370121,0.30990594,98522.0,98521.0,0.11250365]
[1739253370326,0.30990594,98522.0,98521.0,0.11650365]
[1739253370731,0.30990594,98522.0,98521.0,0.11350365]
[1739253371091,0.00765594,98522.0,98521.0,0.12150365]
[1739253371300,0.00865594,98522.0,98521.0,0.13150365]
[1739253371476,0.00113262,98522.0,98521.0,0.12351861]
[1739253371672,0.00013262,98522.0,98521.0,0.12351861]
[1739253371904,0.00113262,98522.0,98521.0,0.12951861]
[1739253372258,0.00113262,98522.0,98521.0,0.98521861]
[1739253372461,0.00113262,98522.0,98521.0,1.0045333]
[1739253372978,0.00113262,98522.0,98521.0,2.6745333]
[1739253373202,0.00113262,98522.0,98521.0,2.6685333]
[1739253373203,0.00013262,98522.0,98521.0,2.6685333]
[1739253373437,0.00013262,98522.0,98521.0,2.69288428]
[1739253373564,0.00113262,98522.0,98521.0,2.72011803]
[1739253373999,0.00013262,98522.0,98521.0,2.70311803]
[1739253374194,0.00013262,98522.0,98521.0,2.71011803]
[1739253374541,0.00113262,98522.0,98521.0,2.71811803]
[1739253374913,0.00013262,98522.0,98521.0,2.71761393]
[1739253375130,0.08824019,98580.0,98552.0,0.172203]
[1739253375347,0.00023903,98553.0,98552.0,0.80982105]
[1739253375552,0.00023903,98553.0,98552.0,0.80880665]
[1739253375985,0.00023903,98553.0,98552.0,0.8090303]
[1739253376815,0.00023903,98553.0,98552.0,0.83338128]
[1739253377247,0.00023903,98553.0,98552.0,1.16198128]
[1739253377653,0.00023903,98553.0,98552.0,1.17198128]
[1739253377861,0.00023903,98553.0,98552.0,1.17948572]
[1739253378481,0.00023903,98553.0,98552.0,1.33948572]
[1739253378482,3e-08,98553.0,98552.0,1.33948572]
[1739253378686,3e-08,98553.0,98552.0,1.36367091]
[1739253378920,0.0001065,98563.0,98562.0,0.332188]
[1739253379091,0.0001065,98563.0,98562.0,0.43469165]
[1739253379322,0.0001065,98563.0,98562.0,0.46128749]
[1739253379523,0.0001065,98563.0,98562.0,0.46879193]
[1739253379932,0.0001065,98563.0,98562.0,0.47879193]
[1739253380137,0.0001065,98563.0,98562.0,0.46879193]
[1739253380344,0.0001065,98563.0,98562.0,0.47879193]
[1739253380550,0.0011065,98563.0,98562.0,0.49379193]
[1739253380755,0.001,98563.0,98562.0,0.51105831]
[1739253380933,0.023,98612.0,98611.0,0.01]
[1739253381167,0.023,98612.0,98611.0,0.11250365]
[1739253381346,0.02957889,98612.0,98611.0,0.11250365]
[1739253383082,0.02957889,98612.0,98611.0,0.13186941]
[1739253383516,0.00013245,98613.0,98612.0,0.01]
[1739253383669,0.00013245,98613.0,98612.0,0.11250365]
[1739253383982,0.02313245,98613.0,98612.0,0.11250365]
[1739253384393,0.02313245,98613.0,98612.0,0.12250365]
[1739253384394,0.02988465,98613.0,98612.0,0.12250365]
[1739253385329,0.02988465,98613.0,98612.0,0.13186941]
[1739253385680,0.02313245,98613.0,98612.0,0.13186941]
[1739253385908,0.02988674,98613.0,98612.0,0.13186941]
[1739253386102,0.02988674,98613.0,98612.0,0.13586941]
[1739253386513,0.02988674,98613.0,98612.0,0.13186941]
[1739253386715,0.02988674,98613.0,98612.0,0.13286941]
[1739253386970,0.02988674,98613.0,98612.0,0.13786941]
[1739253387377,0.02988674,98613.0,98612.0,0.13886941]
[1739253388125,0.02999324,98613.0,98612.0,0.13886941]
[1739253388979,0.02999324,98613.0,98612.0,0.13386941]
[1739253389200,0.02999324,98613.0,98612.0,0.28798041]
[1739253389506,0.02999324,98613.0,98612.0,0.13386941]
[1739253389737,0.02323895,98613.0,98612.0,0.13186941]
[1739253390137,0.02323895,98613.0,98612.0,0.14683228]
[1739253390343,0.03009026,98613.0,98612.0,0.15083228]
[1739253390691,0.03009026,98613.0,98612.0,0.14783228]
[1739253390904,0.03009026,98613.0,98612.0,0.14983228]
[1739253391117,0.03009026,98613.0,98612.0,0.15583228]
[1739253391318,0.03009026,98613.0,98612.0,0.15283228]
[1739253392444,0.03009026,98613.0,98612.0,0.14683228]
[1739253392627,0.03009026,98613.0,98612.0,0.14883228]
[1739253392825,0.03009026,98613.0,98612.0,0.15583228]
[1739253393001,0.03009026,98613.0,98612.0,0.05132863]
[1739253393387,0.18009026,98613.0,98612.0,0.03332863]
[1739253393589,0.18009026,98613.0,98612.0,0.01836576]
[1739253393942,0.18009026,98613.0,98612.0,0.01136576]
[1739253394154,0.18009026,98613.0,98612.0,0.02036576]
[1739253395794,0.023,98612.0,98591.0,0.02497859]
[1739253396006,0.175142,98592.0,98591.0,0.03497859]
[1739253396420,0.18199791,98592.0,98591.0,0.03497859]
[1739253397235,0.18199791,98592.0,98591.0,0.03397859]
[1739253397435,0.18199791,98592.0,98591.0,0.03697859]
[1739253398001,0.18199791,98592.0,98591.0,0.03137545]
[1739253398407,0.18199791,98592.0,98591.0,0.04137545]
[1739253398611,0.18199791,98592.0,98591.0,0.03137545]
[1739253400186,0.18199791,98592.0,98591.0,0.04137545]
[1739253400380,0.18199791,98592.0,98591.0,0.03137545]
[1739253400584,0.02985591,98592.0,98591.0,0.04137545]
[1739253400799,0.18199791,98592.0,98591.0,0.04137545]
[1739253401179,0.18199791,98592.0,98591.0,0.05643254]
[1739253402724,0.18199791,98592.0,98591.0,0.04643254]
[1739253403104,0.18199791,98592.0,98591.0,0.05643254]
[1739253408870,0.18199791,98592.0,98591.0,0.04643254]
[1739253409068,0.18199791,98592.0,98591.0,0.05643254]
[1739253411699,0.18199791,98592.0,98591.0,0.04137545]
[1739253412104,0.18199791,98592.0,98591.0,0.04159889]
[1739253413130,0.02985591,98592.0,98591.0,0.04159889]
[1739253413863,0.02985591,98592.0,98591.0,0.04307889]
[1739253418591,0.02985591,98592.0,98591.0,0.14558254]
[1739253419438,0.02985591,98592.0,98591.0,0.04307889]
[1739253420384,0.02985591,98592.0,98591.0,0.03307889]
[1739253420824,0.02985591,98592.0,98591.0,0.04307889]
[1739253421024,0.02985591,98592.0,98591.0,0.03307889]
[1739253421280,0.02985591,98592.0,98591.0,0.02307889]
[1739253421281,0.15555591,98592.0,98591.0,0.02307889]
[1739253422298,0.15555591,98592.0,98591.0,0.02007889]
[1739253422467,0.15555591,98592.0,98591.0,0.01107889]
[1739253422665,0.15555591,98592.0,98591.0,0.01207889]
[1739253422666,0.02985591,98592.0,98591.0,0.01207889]
[1739253423343,0.02985591,98592.0,98591.0,0.01307889]
[1739253423771,0.00586507,98592.0,98591.0,0.01307889]
[1739253424535,0.00556507,98592.0,98591.0,0.01807889]
[1739253424919,0.00556507,98592.0,98591.0,0.00370344]
[1739253425940,0.00556507,98592.0,98591.0,0.00870344]
[1739253426141,0.00556507,98592.0,98591.0,0.00670344]
[1739253426323,0.00556507,98592.0,98591.0,0.00170344]
[1739253427658,0.00556507,98592.0,98591.0,0.00270344]
[1739253429253,0.15556507,98592.0,98591.0,0.00270344]
[1739253431160,0.17856507,98592.0,98591.0,0.00270344]
[1739253431931,0.15556507,98592.0,98591.0,0.01270344]
[1739253432770,0.17856507,98592.0,98591.0,0.00270344]
[1739253433969,0.18056507,98592.0,98591.0,0.00270344]
[1739253434475,0.18056507,98592.0,98591.0,0.00170344]
[1739253434648,0.18456507,98592.0,98591.0,0.00170344]
[1739253435089,0.18056507,98592.0,98591.0,0.00170344]
[1739253435506,0.18256507,98592.0,98591.0,0.00170344]
[1739253435630,0.18456507,98592.0,98591.0,0.00170344]
[1739253442752,0.03456507,98592.0,98591.0,0.00170344]
[1739253442961,0.33670707,98592.0,98591.0,0.00170344]
[1739253447933,0.33681347,98592.0,98591.0,0.00170344]
[1739253449543,0.33681347,98592.0,98591.0,0.01170344]
[1739253450343,0.33281347,98592.0,98591.0,0.01170344]
[1739253451160,0.33481347,98592.0,98591.0,0.01170344]
[1739253451564,0.33681347,98592.0,98591.0,0.00170344]
[1739253451756,0.33681347,98592.0,98591.0,0.01170344]
[1739253453788,0.33681347,98592.0,98591.0,0.00170344]
[1739253456439,0.33681347,98592.0,98591.0,0.01170344]
[1739253457194,0.31381347,98592.0,98591.0,0.01170344]
[1739253457392,0.33681347,98592.0,98591.0,0.00170344]
[1739253457980,0.33281347,98592.0,98591.0,0.00170344]
[1739253458276,0.30781347,98592.0,98591.0,0.00170344]
[1739253458516,0.31381347,98592.0,98591.0,0.00170344]
[1739253459069,0.31385347,98592.0,98591.0,0.00170344]
[1739253459379,0.31185347,98592.0,98591.0,0.00170344]
[1739253459936,0.30785347,98592.0,98591.0,0.00170344]
[1739253460143,0.30785347,98592.0,98591.0,0.01170344]
[1739253460553,0.31085347,98592.0,98591.0,0.01170344]
[1739253460749,0.31285347,98592.0,98591.0,0.01170344]
[1739253461649,0.30785347,98592.0,98591.0,0.01170344]
[1739253462091,0.30985347,98592.0,98591.0,0.01170344]
[1739253462998,0.31285347,98592.0,98591.0,0.01170344]
[1739253466768,0.16071147,98592.0,98591.0,0.01170344]
[1739253466981,0.01071147,98592.0,98591.0,0.01170344]
[1739253467237,0.01071147,98592.0,98591.0,0.02170344]
[1739253467459,0.16071147,98592.0,98591.0,0.02170344]
[1739253467657,0.15771147,98592.0,98591.0,0.02170344]
[1739253467862,0.15571147,98592.0,98591.0,0.02170344]
[1739253467994,0.15871147,98592.0,98591.0,0.02270344]
[1739253468201,0.15871147,98592.0,98591.0,0.27735009]
[1739253468202,0.00871147,98592.0,98591.0,0.27735009]
[1739253468401,0.00871147,98592.0,98591.0,0.12520709]
[1739253468603,0.0031464,98592.0,98591.0,0.12520709]
[1739253468812,0.0031464,98592.0,98591.0,0.12420709]
[1739253469186,0.0001464,98592.0,98591.0,0.12520709]
[1739253469990,0.0001464,98592.0,98591.0,0.1327767]
[1739253470511,0.0001464,98592.0,98591.0,0.14123692]
[1739253470841,0.0001464,98592.0,98591.0,0.16123692]
[1739253476232,0.0001464,98592.0,98591.0,0.15366731]
[1739253476861,0.00595643,98592.0,98591.0,0.15366731]
[1739253477064,0.0001464,98592.0,98591.0,0.15366731]
[1739253477760,0.00989288,98598.0,98591.0,0.15366731]
[1739253477906,0.15,98600.0,98592.0,0.10250365]
[1739253478261,0.00581021,98599.0,98598.0,0.01]
[1739253479227,0.00581021,98599.0,98598.0,0.02]
[1739253479639,0.15,98602.0,98601.0,0.01]
[1739253479887,0.15,98602.0,98601.0,0.02]
[1739253480268,0.352821,98609.0,98608.0,0.01]
[1739253480472,0.15,98609.0,98608.0,0.02]
[1739253480721,0.15,98609.0,98608.0,0.01]
[1739253480925,0.302115,98609.0,98608.0,0.02]
[1739253481457,0.3079637,98609.0,98608.0,0.02]
[1739253481664,0.1558487,98609.0,98608.0,0.021]
[1739253481851,0.1558487,98609.0,98608.0,0.02]
[1739253482249,0.3079637,98609.0,98608.0,0.022]
[1739253482607,0.30755084,98609.0,98608.0,0.022]
[1739253482814,0.15543584,98609.0,98608.0,0.022]
[1739253483214,0.30755084,98609.0,98608.0,0.024]
[1739253483471,0.15543584,98609.0,98608.0,0.024]
[1739253484121,0.15554224,98609.0,98608.0,0.024]
[1739253486973,0.15454224,98609.0,98608.0,0.024]
[1739253487927,0.15410045,98609.0,98608.0,0.024]
[1739253490624,0.15410045,98609.0,98608.0,0.12650365]
[1739253491039,0.14825175,98609.0,98608.0,0.12650365]
[1739253491464,0.0001064,98609.0,98608.0,0.27862065]
[1739253491687,0.00598146,98609.0,98608.0,0.12650365]
[1739253492040,0.0001064,98609.0,98608.0,0.12650365]
[1739253493080,3.889e-05,98613.0,98608.0,0.27862065]
[1739253493280,3.889e-05,98613.0,98612.0,0.02]
[1739253493403,3.889e-05,98613.0,98612.0,0.12250365]
[1739253495030,3.889e-05,98613.0,98612.0,0.02]
[1739253495031,0.30214789,98613.0,98612.0,0.02]
[1739253495232,0.30314789,98613.0,98612.0,0.02]
[1739253495437,0.30903532,98613.0,98612.0,0.02]
[1739253495638,0.30803532,98613.0,98612.0,0.02]
[1739253495838,0.30803532,98613.0,98608.0,0.02]
[1739253495839,0.302115,98609.0,98608.0,0.02]
[1739253496041,0.325129,98600.0,98599.0,0.01]
[1739253496246,0.302131,98599.0,98598.0,0.01755727]
[1739253496462,0.302131,98599.0,98598.0,0.02755727]
[1739253496899,0.30801849,98599.0,98598.0,0.02755727]
[1739253497304,0.00588749,98599.0,98598.0,0.13006092]
[1739253497477,0.00588749,98599.0,98598.0,0.12250365]
[1739253497713,0.15,98601.0,98600.0,0.01]
[1739253498550,0.15,98602.0,98600.0,0.01]
[1739253499247,0.15,98602.0,98601.0,0.01]
[1739253500312,0.15,98602.0,98600.0,0.013]
[1739253500313,0.302128,98601.0,98600.0,0.013]
[1739253501067,0.302128,98601.0,98600.0,0.018]
[1739253501413,0.302128,98601.0,98600.0,0.015]
[1739253501619,0.3020373,98601.0,98600.0,0.015]
[1739253501755,0.3250373,98601.0,98600.0,0.005]
[1739253501955,0.4029373,98601.0,98600.0,0.005]
[1739253502182,0.4029373,98601.0,98598.0,0.01]
[1739253502183,0.302131,98599.0,98598.0,0.01]
[1739253502396,0.325131,98599.0,98598.0,0.01]
[1739253502622,0.173,98598.0,98595.0,0.01]
[1739253502779,0.173,98598.0,98597.0,0.01]
[1739253502978,0.173,98596.0,98595.0,0.01]
[1739253503181,0.173,98596.0,98595.0,0.02]
[1739253503371,0.173,98596.0,98595.0,0.01]
[1739253503573,0.325135,98596.0,98595.0,0.01]
[1739253503771,0.370835,98596.0,98595.0,0.01]
[1739253504849,0.370835,98596.0,98591.0,0.02170344]
[1739253504850,0.175142,98592.0,98591.0,0.02170344]
[1739253505290,0.325142,98592.0,98591.0,0.00170344]
[1739253505685,0.33551721,98592.0,98591.0,0.00170344]
[1739253505911,0.41341721,98592.0,98591.0,0.00170344]
[1739253506143,0.41341721,98592.0,98591.0,0.00870344]
[1739253506357,0.41341721,98592.0,98591.0,0.01170344]
[1739253506672,0.41341721,98592.0,98591.0,0.00870344]
[1739253507122,0.51592086,98592.0,98591.0,0.00870344]
[1739253508048,0.51592086,98592.0,98591.0,0.00170344]
[1739253508249,0.51592086,98592.0,98591.0,0.00370344]
[1739253508460,0.51592086,98592.0,98591.0,0.00270344]
[1739253508657,0.51592086,98592.0,98591.0,0.00170344]
[1739253509069,0.51792086,98592.0,98591.0,0.00170344]
[1739253510016,0.51747907,98592.0,98591.0,0.00170344]
[1739253511566,0.52331092,98592.0,98591.0,0.00170344]
[1739253514315,0.52331092,98592.0,98563.0,0.00022365]
[1739253514316,0.15,98564.0,98563.0,0.00022365]
[1739253514445,0.302185,98564.0,98563.0,0.00022365]
[1739253514648,0.33092395,98564.0,98563.0,0.00022365]
[1739253514851,0.33092395,98564.0,98563.0,0.01022365]
[1739253515058,0.17873895,98564.0,98563.0,0.01022365]
[1739253515475,0.30792395,98564.0,98563.0,0.01022365]
[1739253515652,0.30799993,98564.0,98563.0,0.01722365]
[1739253516285,0.30799993,98564.0,98563.0,0.03222365]
[1739253519209,0.30799993,98564.0,98563.0,0.01022365]
[1739253520175,0.30799993,98564.0,98563.0,0.01122365]
[1739253521315,0.30799993,98564.0,98563.0,0.01022365]
[1739253521524,0.30799993,98564.0,98563.0,0.00022365]
[1739253521941,0.33299993,98564.0,98563.0,0.00022365]
[1739253522357,0.33099993,98564.0,98563.0,0.00022365]
[1739253522767,0.33299993,98564.0,98563.0,0.00022365]
[1739253523202,0.33099993,98564.0,98563.0,0.00022365]
[1739253524687,0.33299993,98564.0,98563.0,0.00022365]
[1739253526069,0.30999993,98564.0,98563.0,0.00022365]
[1739253526198,0.41009993,98564.0,98563.0,0.00022365]
[1739253528389,0.40965814,98564.0,98563.0,0.00022365]
[1739253531820,0.40976484,98564.0,98563.0,0.00022365]
[1739253532780,0.00792163,98564.0,98563.0,0.00022365]
[1739253532925,0.00792163,98564.0,98563.0,0.00012365]
[1739253534150,0.00592163,98564.0,98563.0,0.00012365]
[1739253534649,0.00792163,98564.0,98563.0,0.00012365]
[1739253535079,0.00592163,98564.0,98563.0,0.01012365]
[1739253535454,0.00592163,98564.0,98563.0,0.01212365]
[1739253535654,0.00592163,98564.0,98563.0,0.02212365]
[1739253535810,0.047,98580.0,98564.0,0.00407837]
[1739253536011,0.047,98580.0,98564.0,0.00421082]
[1739253536212,0.152169,98575.0,98564.0,0.00421082]
[1739253536612,0.152171,98573.0,98564.0,0.00409788]
[1739253536922,0.15,98576.0,98564.0,0.00409788]